[Event "22nd Ruzomberok Open 2019"]
[Site "Ruzomberok"]
[Date "2019.07.02"]
[Round "4.21"]
[White "Janik, Miroslav"]
[Black "Jakab, Stefan"]
[Result "1-0"]
[ECO "B32"]
[WhiteElo "1889"]
[BlackElo "1751"]
[Annotator "NA"]
[PlyCount "77"]
[EventDate "2019.06.29"]
[EventType "swiss"]
[EventCountry "SVK"]
[SourceTitle "playchess.com"]
[Source "ChessBase"]
[SourceQuality "1"]
[TimeControl "40/5400+30:1800+30"]

1. e4 {[%emt 0:00:00]} c5 {[%emt 0:00:01]} 2. Nf3 {[%emt 0:00:16]} Nc6 {[%emt 0:00:25]} 3. d4 {[%emt 0:00:11]} cxd4 {[%emt 0:00:35]} 4. Nxd4 {[%emt 0:00:09]} d6 {[%emt 0:01:11]} 5. Nc3 {[%emt 0:01:22]} a6 {[%emt 0:00:38]} 6. g3 {[%emt 0:00:41]} Nf6 {[%emt 0:02:22]} 7. Bg2 {[%emt 0:00:30]} g6 {[%emt 0:00:59]} 8. Nxc6 {[%emt 0:04:15]} bxc6 {[%emt 0:00:25]} 9. e5 {[%emt 0:00:12]} Nd5 {[%emt 0:02:50]} 10. Nxd5 {[%emt 0:00:09]} cxd5 {[%emt 0:00:05]} 11. Bxd5 {[%emt 0:01:49]} Rb8 {[%emt 0:01:35]} 12. exd6 {[%emt 0:04:38]} e6 {[%emt 0:00:54]} 13. Bg2 {[%emt 0:02:58]} Bxd6 {[%emt 0:03:44]} 14. Bc6+ {[%emt 0:01:41]} Ke7 {[%emt 0:00:12]} 15. O-O {[%emt 0:01:34]} Qb6 {[%emt 0:01:12]} 16. Qf3 {[%emt 0:01:16]} f6 {[%emt 0:04:44]} 17. Rd1 {[%emt 0:03:27]} Bb7 {[%emt 0:01:36]} 18. Bxb7 {[%emt 0:00:24]} Rxb7 {[%emt 0:03:36]} 19. Be3 {[%emt 0:02:09]} Qc7 {[%emt 0:01:51]} 20. Rd3 {[%emt 0:07:35]} Rd8 {[%emt 0:03:49]} 21. Rad1 {[%emt 0:03:49]} Rbb8 {[%emt 0:02:17]} 22. Bd4 {[%emt 0:08:23]} e5 {[%emt 0:02:30]} 23. Bc3 {[%emt 0:01:10]} a5 {[%emt 0:07:08]} 24. Rd5 {[%emt 0:00:47]} Bc5 {[%emt 0:00:48]} 25. Qd3 {[%emt 0:02:42]} Rxd5 {[%emt 0:08:28]} 26. Qxd5 {[%emt 0:00:15]} Rb5 {[%emt 0:00:56]} 27. Kg2 {[%emt 0:01:03]} Rb8 {[%emt 0:01:40]} 28. a4 {[%emt 0:05:31]} h5 {[%emt 0:01:20]} 29. Qe4 {[%emt 0:01:20]} Qb7 {[%emt 0:02:51]} 30. Qxb7+ {[%emt 0:00:23]} Rxb7 {[%emt 0:00:02]} 31. b3 {[%emt 0:00:16]} Bb4 {[%emt 0:01:28]} 32. Bxb4+ {[%emt 0:00:24]} axb4 {[%emt 0:00:11]} 33. f4 {[%emt 0:04:39]} e4 {[%emt 0:00:53]} 34. Rd4 {[%emt 0:00:33]} f5 {[%emt 0:00:13]} 35. a5 {[%emt 0:02:13]} Rc7 {[%emt 0:00:24]} 36. Rxb4 {[%emt 0:02:38]} Rxc2+ {[%emt 0:00:14]} 37. Kf1 {[%emt 0:00:07]} Kd7 {[%emt 0:01:34]} 38. Ra4 {[%emt 0:03:50]} Rxh2 {[%emt 0:01:51]} 39. a6 {[%emt 0:00:32]} 1-0

[Event "22nd Ruzomberok Open 2019"]
[Site "Ruzomberok"]
[Date "2019.07.02"]
[Round "4.22"]
[White "Stanko, Ivan"]
[Black "Slivka, Vasil"]
[Result "1-0"]
[ECO "B12"]
[WhiteElo "1859"]
[BlackElo "1562"]
[Annotator "NA"]
[PlyCount "57"]
[EventDate "2019.06.29"]
[EventType "swiss"]
[EventCountry "SVK"]
[SourceTitle "playchess.com"]
[Source "ChessBase"]
[SourceQuality "1"]
[TimeControl "40/5400+30:1800+30"]

1. e4 {[%emt 0:00:00]} c6 {[%emt 0:00:00]} 2. d4 {[%emt 0:00:04]} d5 {[%emt 0:00:00]} 3. e5 {[%emt 0:03:57]} Bf5 {[%emt 0:02:09]} 4. Nf3 {[%emt 0:00:57]} e6 {[%emt 0:00:08]} 5. Be2 {[%emt 0:02:11]} Nd7 {[%emt 0:00:12]} 6. O-O {[%emt 0:00:12]} c5 {[%emt 0:00:33]} 7. c4 {[%emt 0:01:00]} cxd4 {[%emt 0:01:16]} 8. cxd5 {[%emt 0:01:04]} Bc5 {[%emt 0:01:07]} 9. Nxd4 {[%emt 0:03:44]} Bxd4 {[%emt 0:02:53]} 10. Qxd4 {[%emt 0:00:09]} exd5 {[%emt 0:00:51]} 11. Nc3 {[%emt 0:01:41]} Nb6 {[%emt 0:02:22]} 12. Nb5 {[%emt 0:14:37]} Be6 {[%emt 0:03:04]} 13. Nd6+ {[%emt 0:02:07]} Kf8 {[%emt 0:00:13]} 14. b3 {[%emt 0:01:14]} Ne7 {[%emt 0:01:14]} 15. Ba3 {[%emt 0:01:22]} Kg8 {[%emt 0:03:00]} 16. Nxb7 {[%emt 0:03:12]} Nf5 {[%emt 0:02:11]} 17. Qf4 {[%emt 0:02:09]} Qd7 {[%emt 0:02:18]} 18. Nc5 {[%emt 0:05:41]} Qe8 {[%emt 0:03:00]} 19. Bd3 {[%emt 0:07:00]} Ne7 {[%emt 0:03:51]} 20. Qg5 {[%emt 0:06:29]} Ng6 {[%emt 0:01:30]} 21. f4 {[%emt 0:00:35]} h6 {[%emt 0:04:13]} 22. Qg3 {[%emt 0:00:20]} Bc8 {[%emt 0:00:40]} 23. Rae1 {[%emt 0:03:09]} Nf8 {[%emt 0:01:51]} 24. f5 {[%emt 0:00:21]} Nfd7 {[%emt 0:01:45]} 25. Nxd7 {[%emt 0:01:30]} Nxd7 {[%emt 0:01:57]} 26. f6 {[%emt 0:00:18]} g5 {[%emt 0:01:53]} 27. e6 {[%emt 0:04:16]} Nxf6 {[%emt 0:00:23]} 28. Rxf6 {[%emt 0:00:09]} Bxe6 {[%emt 0:00:17]} 29. Rexe6 {[%emt 0:02:17]} 1-0

[Event "22nd Ruzomberok Open 2019"]
[Site "Ruzomberok"]
[Date "2019.07.02"]
[Round "4.23"]
[White "Taragel, Marian"]
[Black "Bartanus, Stanislav"]
[Result "1-0"]
[ECO "B35"]
[WhiteElo "1636"]
[BlackElo "1781"]
[Annotator "NA"]
[PlyCount "75"]
[EventDate "2019.06.29"]
[EventType "swiss"]
[EventCountry "SVK"]
[SourceTitle "playchess.com"]
[Source "ChessBase"]
[SourceQuality "1"]
[TimeControl "40/5400+30:1800+30"]

1. e4 {[%emt 0:00:00]} c5 {[%emt 0:00:00]} 2. Nf3 {[%emt 0:00:39]} Nc6 {[%emt 0:00:00]} 3. d4 {[%emt 0:01:15]} cxd4 {[%emt 0:01:24]} 4. Nxd4 {[%emt 0:00:26]} Nf6 {[%emt 0:00:39]} 5. Nc3 {[%emt 0:01:25]} g6 {[%emt 0:05:50]} 6. Be3 {[%emt 0:02:47]} Bg7 {[%emt 0:02:49]} 7. Bc4 {[%emt 0:01:33]} O-O {[%emt 0:01:57]} 8. Bb3 {[%emt 0:01:25]} Qa5 {[%emt 0:05:34]} 9. O-O {[%emt 0:03:24]} Nxd4 {[%emt 0:03:19]} 10. Bxd4 {[%emt 0:02:47]} d6 {[%emt 0:00:46]} 11. Re1 {[%emt 0:12:07]} Bg4 {[%emt 0:04:59]} 12. f3 {[%emt 0:01:28]} Be6 {[%emt 0:00:08]} 13. Qd2 {[%emt 0:08:55]} Bxb3 {[%emt 0:02:29]} 14. axb3 {[%emt 0:00:55]} Qh5 {[%emt 0:03:00]} 15. Bxa7 {[%emt 0:06:45]} Rfc8 {[%emt 0:00:32]} 16. Ra2 {[%emt 0:04:01]} Rc6 {[%emt 0:05:39]} 17. Rea1 {[%emt 0:01:34]} Rac8 {[%emt 0:00:15]} 18. Bd4 {[%emt 0:02:49]} b5 {[%emt 0:08:21]} 19. Ra5 {[%emt 0:02:48]} e5 {[%emt 0:06:31]} 20. Rxb5 {[%emt 0:02:28]} Bh6 {[%emt 0:00:46]} 21. Be3 {[%emt 0:02:20]} Bxe3+ {[%emt 0:00:05]} 22. Qxe3 {[%emt 0:00:29]} Qh4 {[%emt 0:00:29]} 23. Ra7 {[%emt 0:02:55]} Nh5 {[%emt 0:01:26]} 24. Rbb7 {[%emt 0:02:58]} Nf4 {[%emt 0:01:06]} 25. Rxf7 {[%emt 0:05:30]} Rxc3 {[%emt 0:02:32]} 26. bxc3 {[%emt 0:04:08]} Rxc3 {[%emt 0:00:12]} 27. Rg7+ {[%emt 0:10:09]} Kh8 {[%emt 0:04:56]} 28. Rgb7 {[%emt 0:01:58]} Qd8 {[%emt 0:01:13]} 29. Qd2 {[%emt 0:00:39]} d5 {[%emt 0:02:17]} 30. Rd7 {[%emt 0:02:20]} Qc8 {[%emt 0:01:35]} 31. g3 {[%emt 0:01:28]} Nh3+ {[%emt 0:03:01]} 32. Kg2 {[%emt 0:00:09]} Rxc2 {[%emt 0:00:12]} 33. Rd8+ {[%emt 0:00:58]} Qxd8 {[%emt 0:00:27]} 34. Qxc2 {[%emt 0:00:07]} Ng5 {[%emt 0:00:16]} 35. exd5 {[%emt 0:00:44]} Qf8 {[%emt 0:00:17]} 36. f4 {[%emt 0:03:29]} exf4 {[%emt 0:00:29]} 37. gxf4 {[%emt 0:00:22]} Nf7 {[%emt 0:00:23]} 38. b4 1-0

[Event "22nd Ruzomberok Open 2019"]
[Site "Ruzomberok"]
[Date "2019.07.02"]
[Round "4.24"]
[White "Kapicakova, Lucia"]
[Black "Malinovsky, Jozef"]
[Result "1-0"]
[ECO "A06"]
[WhiteElo "1776"]
[BlackElo "1715"]
[Annotator "NA"]
[PlyCount "137"]
[EventDate "2019.06.29"]
[EventType "swiss"]
[EventCountry "SVK"]
[SourceTitle "playchess.com"]
[Source "ChessBase"]
[SourceQuality "1"]
[TimeControl "40/5400+30:1800+30"]

1. Nf3 {[%emt 0:00:00]} d5 {[%emt 0:00:03]} 2. g3 {[%emt 0:00:00]} Nf6 {[%emt 0:01:45]} 3. Bg2 {[%emt 0:00:00]} g6 {[%emt 0:02:36]} 4. d3 {[%emt 0:00:57]} Bg7 {[%emt 0:00:30]} 5. O-O {[%emt 0:00:30]} O-O {[%emt 0:01:41]} 6. Nbd2 {[%emt 0:00:28]} Nbd7 {[%emt 0:00:54]} 7. e4 {[%emt 0:01:00]} dxe4 {[%emt 0:00:18]} 8. dxe4 {[%emt 0:00:47]} Nc5 {[%emt 0:03:08]} 9. Qe2 {[%emt 0:04:13]} b6 {[%emt 0:05:35]} 10. e5 {[%emt 0:07:30]} Ne8 {[%emt 0:02:35]} 11. Nd4 {[%emt 0:07:05]} Ba6 {[%emt 0:05:39]} 12. c4 {[%emt 0:05:06]} Qxd4 {[%emt 0:02:17]} 13. Bxa8 {[%emt 0:02:40]} Qxe5 {[%emt 0:13:27]} 14. Qxe5 {[%emt 0:09:06]} Bxe5 {[%emt 0:00:17]} 15. Bf3 {[%emt 0:05:03]} Nd3 {[%emt 0:05:18]} 16. Rb1 {[%emt 0:03:02]} Nd6 {[%emt 0:09:17]} 17. b3 {[%emt 0:01:44]} Bc8 {[%emt 0:13:51]} 18. Ba3 {[%emt 0:13:56]} Bh3 {[%emt 0:00:35]} 19. Bg2 {[%emt 0:02:37]} Bf5 {[%emt 0:02:35]} 20. Rbd1 {[%emt 0:02:59]} c5 {[%emt 0:08:54]} 21. Nf3 {[%emt 0:03:41]} Bf6 {[%emt 0:05:56]} 22. Bc1 {[%emt 0:05:37]} Nxc1 {[%emt 0:05:27]} 23. Rxc1 {[%emt 0:00:09]} Bb2 {[%emt 0:02:16]} 24. Rcd1 {[%emt 0:00:53]} Bc3 {[%emt 0:03:04]} 25. Nh4 {[%emt 0:04:39]} Bc8 {[%emt 0:00:37]} 26. Rd3 {[%emt 0:01:10]} Bf6 {[%emt 0:00:17]} 27. Nf3 {[%emt 0:01:24]} Bf5 {[%emt 0:00:54]} 28. Rdd1 {[%emt 0:01:52]} Bc2 {[%emt 0:00:17]} 29. Rd2 {[%emt 0:01:41]} Bf5 {[%emt 0:00:04]} 30. Ne1 {[%emt 0:02:53]} Bc3 {[%emt 0:00:45]} 31. Re2 {[%emt 0:02:50]} Bf6 {[%emt 0:00:02]} 32. h3 {[%emt 0:01:08]} h5 {[%emt 0:00:30]} 33. Kh2 {[%emt 0:04:31]} Rd8 {[%emt 0:00:35]} 34. Rd2 {[%emt 0:01:09]} Re8 {[%emt 0:00:05]} 35. f4 {[%emt 0:02:11]} Kg7 {[%emt 0:00:38]} 36. Nd3 {[%emt 0:01:08]} Bc3 {[%emt 0:00:21]} 37. Rdd1 {[%emt 0:00:37]} Bc8 {[%emt 0:00:11]} 38. Ne5 {[%emt 0:01:22]} Nf5 {[%emt 0:00:38]} 39. Rd3 {[%emt 0:00:32]} Bb2 {[%emt 0:00:34]} 40. Bc6 {[%emt 0:00:24]} Rh8 {[%emt 0:00:18]} 41. Bd7 {[%emt 0:30:34]} Nd4 {[%emt 0:30:17]} 42. Bxc8 {[%emt 0:01:05]} Rxc8 {[%emt 0:00:01]} 43. Nf3 {[%emt 0:00:00]} e6 {[%emt 0:00:00]} 44. Nxd4 {[%emt 0:00:00]} Bxd4 {[%emt 0:00:00]} 45. b4 {[%emt 0:00:00]} Rd8 {[%emt 0:00:00]} 46. bxc5 {[%emt 0:00:00]} bxc5 {[%emt 0:00:00]} 47. Kg2 {[%emt 0:00:00]} Rb8 {[%emt 0:00:00]} 48. Rb3 {[%emt 0:00:00]} Ra8 {[%emt 0:00:00]} 49. Rfb1 {[%emt 0:00:00]} a5 {[%emt 0:00:00]} 50. a4 {[%emt 0:00:00]} Rd8 {[%emt 0:00:00]} 51. Rb5 {[%emt 0:00:00]} Ra8 {[%emt 0:00:00]} 52. Rb7 {[%emt 0:00:00]} e5 {[%emt 0:00:00]} 53. Rc7 {[%emt 0:00:00]} exf4 {[%emt 0:00:00]} 54. gxf4 {[%emt 0:00:00]} Bc3 {[%emt 0:00:00]} 55. Rxc5 {[%emt 0:00:00]} Bb4 {[%emt 0:00:00]} 56. Rc6 {[%emt 0:00:45]} Rd8 {[%emt 0:00:00]} 57. c5 {[%emt 0:01:54]} Rd2+ {[%emt 0:00:00]} 58. Kf3 {[%emt 0:01:20]} Rd3+ {[%emt 0:00:00]} 59. Ke4 {[%emt 0:00:32]} Rxh3 {[%emt 0:00:00]} 60. Rc8 {[%emt 0:01:13]} Ra3 {[%emt 0:00:00]} 61. c6 {[%emt 0:02:20]} Bd6 {[%emt 0:00:00]} 62. c7 {[%emt 0:01:44]} Rxa4+ {[%emt 0:00:00]} 63. Kd5 {[%emt 0:00:33]} Bxf4 {[%emt 0:00:00]} 64. Rg8+ {[%emt 0:00:23]} Kxg8 {[%emt 0:00:00]} 65. c8=Q+ {[%emt 0:00:11]} Kg7 {[%emt 0:00:00]} 66. Qc3+ {[%emt 0:00:20]} f6 {[%emt 0:00:00]} 67. Rb7+ {[%emt 0:00:14]} Kh6 {[%emt 0:00:00]} 68. Qxf6 {[%emt 0:00:32]} Be3 {[%emt 0:00:00]} 69. Qh8+ {[%emt 0:00:33]} 1-0

[Event "22nd Ruzomberok Open 2019"]
[Site "Ruzomberok"]
[Date "2019.07.02"]
[Round "4.25"]
[White "Verba, Vladimir"]
[Black "Druska, Robert"]
[Result "1-0"]
[ECO "C40"]
[WhiteElo "1708"]
[BlackElo "1918"]
[Annotator "NA"]
[PlyCount "71"]
[EventDate "2019.06.29"]
[EventType "swiss"]
[EventCountry "SVK"]
[SourceTitle "playchess.com"]
[Source "ChessBase"]
[SourceQuality "1"]
[TimeControl "40/5400+30:1800+30"]

1. e4 {[%emt 0:00:00]} e5 {[%emt 0:00:00]} 2. Nf3 {[%emt 0:00:30]} f5 {[%emt 0:00:30]} 3. Nxe5 {[%emt 0:00:30]} Qf6 {[%emt 0:00:30]} 4. d4 {[%emt 0:00:30]} d6 {[%emt 0:00:30]} 5. Nc4 {[%emt 0:00:30]} fxe4 {[%emt 0:01:22]} 6. Ne3 {[%emt 0:00:36]} Qf7 {[%emt 0:02:35]} 7. c4 {[%emt 0:01:25]} Nf6 {[%emt 0:00:25]} 8. Nc3 {[%emt 0:02:26]} Nc6 {[%emt 0:02:20]} 9. b3 {[%emt 0:06:08]} Bd7 {[%emt 0:03:12]} 10. Ned5 {[%emt 0:14:46]} O-O-O {[%emt 0:01:51]} 11. Be3 {[%emt 0:08:57]} Re8 {[%emt 0:02:13]} 12. Be2 {[%emt 0:05:47]} h6 {[%emt 0:03:07]} 13. Qd2 {[%emt 0:04:58]} g5 {[%emt 0:04:46]} 14. Nxf6 {[%emt 0:01:34]} Qxf6 {[%emt 0:01:17]} 15. d5 {[%emt 0:00:31]} Ne5 {[%emt 0:00:35]} 16. O-O {[%emt 0:11:13]} Qg6 {[%emt 0:01:32]} 17. Qd4 {[%emt 0:04:01]} b6 {[%emt 0:01:50]} 18. c5 {[%emt 0:04:23]} Bg7 {[%emt 0:07:32]} 19. Qxe4 {[%emt 0:07:05]} Bf5 {[%emt 0:03:18]} 20. Qa4 {[%emt 0:02:36]} dxc5 {[%emt 0:19:52]} 21. Qxa7 {[%emt 0:05:28]} g4 {[%emt 0:02:58]} 22. Nb5 {[%emt 0:01:26]} Re7 {[%emt 0:03:19]} 23. d6 {[%emt 0:03:38]} Nf3+ {[%emt 0:10:25]} 24. Bxf3 {[%emt 0:05:21]} gxf3 {[%emt 0:00:13]} 25. g3 {[%emt 0:00:35]} Bxa1 {[%emt 0:03:51]} 26. dxe7 {[%emt 0:03:05]} Be5 {[%emt 0:01:35]} 27. Rd1 {[%emt 0:03:17]} Qc6 {[%emt 0:03:09]} 28. Qa4 {[%emt 0:01:19]} Qe4 {[%emt 0:05:25]} 29. Qa6+ {[%emt 0:00:58]} Qb7 {[%emt 0:00:46]} 30. Na7+ {[%emt 0:00:24]} Kb8 {[%emt 0:00:13]} 31. Nc6+ {[%emt 0:00:44]} Qxc6 {[%emt 0:00:25]} 32. Rd8+ {[%emt 0:00:06]} Bc8 {[%emt 0:00:21]} 33. Qxc8+ {[%emt 0:00:12]} Ka7 {[%emt 0:00:02]} 34. Qb8+ {[%emt 0:00:50]} Ka6 {[%emt 0:00:09]} 35. Rxh8 {[%emt 0:00:16]} Bxh8 {[%emt 0:02:05]} 36. e8=Q {[%emt 0:00:15]} 1-0

[Event "22nd Ruzomberok Open 2019"]
[Site "Ruzomberok"]
[Date "2019.07.02"]
[Round "4.26"]
[White "Profant, Jan"]
[Black "Staffen, Robert"]
[Result "1/2-1/2"]
[ECO "A37"]
[WhiteElo "1871"]
[BlackElo "1683"]
[Annotator "NA"]
[PlyCount "142"]
[EventDate "2019.06.29"]
[EventType "swiss"]
[EventCountry "SVK"]
[SourceTitle "playchess.com"]
[Source "ChessBase"]
[SourceQuality "1"]
[TimeControl "40/5400+30:1800+30"]

1. c4 c5 2. Nc3 {[%emt 0:00:25]} Nc6 {[%emt 0:00:14]} 3. g3 {[%emt 0:00:14]} g6 {[%emt 0:00:08]} 4. Bg2 {[%emt 0:00:10]} Bg7 {[%emt 0:00:10]} 5. Nf3 {[%emt 0:02:04]} e6 {[%emt 0:01:15]} 6. e4 {[%emt 0:01:05]} Nge7 {[%emt 0:01:02]} 7. O-O {[%emt 0:00:36]} O-O {[%emt 0:00:43]} 8. d3 {[%emt 0:00:20]} d5 {[%emt 0:00:48]} 9. Bg5 {[%emt 0:02:54]} d4 {[%emt 0:03:32]} 10. Ne2 {[%emt 0:03:02]} f6 {[%emt 0:05:59]} 11. Bd2 {[%emt 0:00:21]} e5 {[%emt 0:00:20]} 12. a3 {[%emt 0:00:28]} a5 {[%emt 0:02:16]} 13. Rb1 {[%emt 0:00:43]} Be6 {[%emt 0:01:21]} 14. Ne1 {[%emt 0:00:53]} Qd7 {[%emt 0:05:15]} 15. Nc2 {[%emt 0:00:50]} f5 {[%emt 0:00:44]} 16. b4 {[%emt 0:00:08]} fxe4 {[%emt 0:05:20]} 17. Bxe4 {[%emt 0:00:05]} Bf5 {[%emt 0:01:46]} 18. Bxf5 {[%emt 0:01:10]} Qxf5 {[%emt 0:02:06]} 19. Nc1 {[%emt 0:08:01]} axb4 {[%emt 0:07:36]} 20. axb4 {[%emt 0:00:12]} b6 {[%emt 0:03:31]} 21. bxc5 {[%emt 0:01:51]} bxc5 {[%emt 0:00:42]} 22. Rb5 {[%emt 0:02:56]} e4 {[%emt 0:10:22]} 23. dxe4 {[%emt 0:03:16]} Qxe4 {[%emt 0:00:27]} 24. Re1 {[%emt 0:01:46]} Qf5 {[%emt 0:02:01]} 25. f4 {[%emt 0:01:26]} d3 {[%emt 0:05:35]} 26. Ne3 {[%emt 0:00:14]} Qe4 {[%emt 0:08:32]} 27. Nb3 {[%emt 0:02:44]} Nf5 {[%emt 0:08:33]} 28. Nxc5 {[%emt 0:00:26]} Nxe3 {[%emt 0:07:18]} 29. Nxe4 {[%emt 0:00:54]} Nxd1 {[%emt 0:00:28]} 30. Rxd1 {[%emt 0:00:01]} Rfe8 {[%emt 0:04:11]} 31. Nd6 {[%emt 0:27:13]} Re2 {[%emt 0:01:54]} 32. Rb3 {[%emt 0:00:14]} Ra2 {[%emt 0:02:56]} 33. Rxd3 {[%emt 0:00:15]} Bd4+ {[%emt 0:01:46]} 34. Kh1 {[%emt 0:00:39]} Bc5 {[%emt 0:00:49]} 35. Nb5 {[%emt 0:00:36]} Bb4 {[%emt 0:02:42]} 36. Be3 {[%emt 0:05:45]} Rxh2+ {[%emt 0:01:29]} 37. Kg1 {[%emt 0:00:01]} Rhg2+ {[%emt 0:00:55]} 38. Kf1 {[%emt 0:00:08]} Rxg3 {[%emt 0:01:32]} 39. Nd4 {[%emt 0:08:43]} Nxd4 {[%emt 0:02:14]} 40. Bxd4 {[%emt 0:00:02]} Rgg2 {[%emt 0:00:21]} 41. Be3 {[%emt 0:31:56]} Rh2 {[%emt 0:30:21]} 42. Rd8+ {[%emt 0:00:16]} Bf8 {[%emt 0:00:33]} 43. Rc8 {[%emt 0:05:20]} Rh1+ {[%emt 0:00:00]} 44. Bg1 {[%emt 0:00:00]} Kf7 {[%emt 0:00:00]} 45. c5 {[%emt 0:00:00]} Rc2 {[%emt 0:00:00]} 46. Rd7+ {[%emt 0:00:00]} Ke6 {[%emt 0:00:00]} 47. Rdc7 {[%emt 0:00:00]} Rc1+ {[%emt 0:00:00]} 48. Ke2 {[%emt 0:00:00]} Rhxg1 {[%emt 0:00:00]} 49. Rxf8 {[%emt 0:00:00]} Rge1+ {[%emt 0:00:00]} 50. Kf3 {[%emt 0:00:00]} Rf1+ {[%emt 0:00:00]} 51. Kg4 {[%emt 0:00:00]} Rh1 {[%emt 0:00:17]} 52. Re8+ {[%emt 0:00:00]} Kd5 {[%emt 0:00:23]} 53. Re5+ {[%emt 0:00:00]} Kd4 {[%emt 0:00:21]} 54. Rd7+ {[%emt 0:00:00]} Kc4 {[%emt 0:00:18]} 55. Kg5 {[%emt 0:00:00]} Rh5+ {[%emt 0:00:17]} 56. Kf6 {[%emt 0:00:00]} Rxe5 {[%emt 0:01:24]} 57. fxe5 {[%emt 0:00:00]} Rf1+ {[%emt 0:00:19]} 58. Ke7 {[%emt 0:02:29]} Kxc5 {[%emt 0:00:39]} 59. e6 {[%emt 0:00:01]} h5 {[%emt 0:01:52]} 60. Ke8 {[%emt 0:00:10]} h4 {[%emt 0:01:12]} 61. Rh7 {[%emt 0:04:14]} Kd6 {[%emt 0:00:26]} 62. e7 {[%emt 0:00:19]} Re1 {[%emt 0:01:42]} 63. Kf8 {[%emt 0:01:17]} Rxe7 {[%emt 0:01:39]} 64. Rxe7 {[%emt 0:00:06]} g5 {[%emt 0:00:18]} 65. Rg7 {[%emt 0:00:48]} Ke5 {[%emt 0:00:12]} 66. Rxg5+ {[%emt 0:01:42]} Kf4 {[%emt 0:00:08]} 67. Rg1 {[%emt 0:03:26]} Kf3 {[%emt 0:00:17]} 68. Kf7 {[%emt 0:00:20]} h3 {[%emt 0:00:09]} 69. Kf6 {[%emt 0:00:43]} h2 {[%emt 0:00:15]} 70. Ra1 {[%emt 0:00:06]} Kg2 {[%emt 0:00:10]} 71. Ra2+ {[%emt 0:00:11]} Kg3 {[%emt 0:00:10]} 1/2-1/2

[Event "22nd Ruzomberok Open 2019"]
[Site "Ruzomberok"]
[Date "2019.07.02"]
[Round "4.27"]
[White "Demko, Ladislav"]
[Black "Ucekajova, Veronika"]
[Result "1/2-1/2"]
[ECO "C13"]
[WhiteElo "1642"]
[BlackElo "1836"]
[Annotator "NA"]
[PlyCount "126"]
[EventDate "2019.06.29"]
[EventType "swiss"]
[EventCountry "SVK"]
[SourceTitle "playchess.com"]
[Source "ChessBase"]
[SourceQuality "1"]
[TimeControl "40/5400+30:1800+30"]

1. e4 {[%emt 0:00:00]} e6 {[%emt 0:00:00]} 2. d4 {[%emt 0:00:03]} d5 {[%emt 0:00:00]} 3. Nc3 {[%emt 0:00:31]} Nf6 {[%emt 0:00:09]} 4. Bg5 {[%emt 0:00:20]} Be7 {[%emt 0:00:35]} 5. exd5 {[%emt 0:02:22]} Nxd5 {[%emt 0:10:16]} 6. Bxe7 Nxe7 7. Nf3 {[%emt 0:02:52]} Nbc6 {[%emt 0:02:41]} 8. Be2 {[%emt 0:02:51]} b6 {[%emt 0:04:11]} 9. O-O {[%emt 0:00:38]} Bb7 {[%emt 0:01:13]} 10. Qd2 {[%emt 0:02:44]} Qd7 {[%emt 0:03:13]} 11. Rad1 {[%emt 0:00:07]} O-O-O {[%emt 0:00:23]} 12. a3 {[%emt 0:02:34]} Nf5 {[%emt 0:16:26]} 13. d5 {[%emt 0:00:27]} exd5 {[%emt 0:00:14]} 14. Qxd5 {[%emt 0:00:05]} Nd6 {[%emt 0:05:03]} 15. Ne5 {[%emt 0:07:32]} Nxe5 {[%emt 0:04:38]} 16. Qxe5 {[%emt 0:00:05]} Rde8 {[%emt 0:01:46]} 17. Qf4 {[%emt 0:00:25]} g5 {[%emt 0:02:47]} 18. Qf6 {[%emt 0:01:51]} Qe6 {[%emt 0:10:07]} 19. Qxe6+ {[%emt 0:00:10]} Rxe6 {[%emt 0:00:07]} 20. Bg4 {[%emt 0:01:25]} f5 {[%emt 0:00:11]} 21. Rxd6 {[%emt 0:00:12]} Rxd6 {[%emt 0:00:18]} 22. Bxf5+ {[%emt 0:00:07]} Kb8 {[%emt 0:02:34]} 23. h3 {[%emt 0:00:10]} h6 {[%emt 0:01:17]} 24. Re1 {[%emt 0:00:43]} Rf8 {[%emt 0:01:07]} 25. Bd3 {[%emt 0:00:49]} Rdf6 {[%emt 0:00:55]} 26. f3 {[%emt 0:00:14]} Bc6 {[%emt 0:11:45]} 27. Re7 {[%emt 0:02:31]} Re8 {[%emt 0:00:34]} 28. Rh7 {[%emt 0:00:30]} Kb7 {[%emt 0:10:03]} 29. b4 {[%emt 0:00:34]} a6 {[%emt 0:01:07]} 30. a4 {[%emt 0:00:02]} b5 {[%emt 0:02:20]} 31. axb5 {[%emt 0:00:33]} axb5 32. Nxb5 {[%emt 0:00:32]} Bxb5 {[%emt 0:00:18]} 33. Bxb5 {[%emt 0:00:04]} Re1+ {[%emt 0:00:10]} 34. Kf2 {[%emt 0:00:34]} Rb1 {[%emt 0:00:17]} 35. Bd3 {[%emt 0:02:21]} Rxb4 {[%emt 0:00:12]} 36. Kg3 {[%emt 0:00:10]} Kb6 {[%emt 0:00:55]} 37. Rh8 {[%emt 0:00:20]} Kc5 {[%emt 0:02:59]} 38. Rd8 {[%emt 0:00:30]} Rd6 {[%emt 0:02:39]} 39. Rc8 {[%emt 0:00:06]} c6 {[%emt 0:01:18]} 40. Be4 {[%emt 0:00:27]} Kb5 {[%emt 0:01:17]} 41. Rb8+ {[%emt 0:31:18]} Kc4 {[%emt 0:33:13]} 42. Rc8 {[%emt 0:00:27]} c5 {[%emt 0:00:32]} 43. h4 {[%emt 0:01:04]} gxh4+ {[%emt 0:00:00]} 44. Kxh4 {[%emt 0:00:00]} Rb1 {[%emt 0:00:00]} 45. g4 {[%emt 0:00:00]} Rg1 {[%emt 0:00:00]} 46. Bd3+ {[%emt 0:00:00]} Kd4 {[%emt 0:00:00]} 47. Re8 {[%emt 0:00:00]} Rh1+ {[%emt 0:00:00]} 48. Kg3 Rg1+ 49. Kf2 {[%emt 0:00:00]} Rd1 {[%emt 0:00:00]} 50. Re4+ {[%emt 0:00:00]} Kd5 {[%emt 0:00:00]} 51. Bc4+ {[%emt 0:00:00]} Kc6 {[%emt 0:00:00]} 52. Bb3 {[%emt 0:00:00]} Rf6 {[%emt 0:00:00]} 53. Bc4 {[%emt 0:00:00]} Rd2+ {[%emt 0:00:00]} 54. Re2 {[%emt 0:00:00]} Rd4 {[%emt 0:00:00]} 55. Bd3 {[%emt 0:00:00]} Rxg4 {[%emt 0:00:00]} 56. Be4+ {[%emt 0:00:00]} Kb6 {[%emt 0:00:00]} 57. Ke3 {[%emt 0:00:00]} Rg3 {[%emt 0:00:00]} 58. Rh2 {[%emt 0:00:00]} Kb5 {[%emt 0:00:00]} 59. Rh5 {[%emt 0:00:00]} Rg5 {[%emt 0:00:00]} 60. Rh3 {[%emt 0:00:00]} Rg1 {[%emt 0:00:00]} 61. Kf2 Rd1 62. Ke2 {[%emt 0:00:00]} Rd8 {[%emt 0:00:00]} 63. Rh5 {[%emt 0:00:00]} Rg8 {[%emt 0:00:14]} 1/2-1/2